fUST/lending_fUST_20250627
["ID","MTS","AMOUNT","RATE_DAILY","PERIOD"]
[368113837,1751027452236,-460.0,0.0002,2]
[368113838,1751027452246,-460.0,0.0002,2]
[368113839,1751027452256,-875.94,0.0002,2]
[368113840,1751027452267,-460.0,0.0002,2]
[368113841,1751027452276,-1879.18,0.0002,2]
[368113842,1751027452286,-963.88,0.0002,2]
[368113843,1751027452296,-706.48,0.0002,2]
[368113844,1751027452305,-2249.58,0.0002,2]
[368113845,1751027452314,-460.0,0.0002,2]
[368113846,1751027452324,-460.0,0.0002,2]
[368113847,1751027452334,-460.0,0.0002,2]
[368113848,1751027452343,-5580.76,0.0002,2]
[368113849,1751027452352,-460.0,0.0002,2]
[368113850,1751027452361,-1858.16,0.0002,2]
[368113851,1751027452371,-460.0,0.0002,2]
[368113852,1751027452380,-716.5,0.0002,2]
[368113853,1751027452389,-460.0,0.0002,2]
[368113854,1751027452399,-619.78,0.0002,2]
[368113855,1751027452408,-495.44,0.0002,2]
[368113856,1751027452418,-460.0,0.0002,2]
[368113857,1751027452427,-460.0,0.0002,2]
[368113858,1751027452437,-460.0,0.0002,2]
[368113859,1751027452447,-246.5,0.0002,2]
[368113860,1751027452458,-1103.54,0.0002,2]
[368113861,1751027452467,-1121.1,0.0002,2]
[368113862,1751027452477,-863.75,0.0002,2]
[368113863,1751027452488,-460.0,0.0002,2]
[368113864,1751027452499,-460.0,0.0002,2]
[368113865,1751027452511,-460.0,0.0002,2]
[368113866,1751027452520,-460.0,0.0002,2]
[368113867,1751027452530,-460.0,0.0002,2]
[368113868,1751027452540,-851.67857876,0.0002,2]
[368113869,1751027452549,-460.0,0.0002,2]
[368113870,1751027452558,-460.0,0.0002,2]
[368113871,1751027452568,-460.0,0.0002,2]
[368113872,1751027452578,-2103.41,0.0002,2]
[368113873,1751027452587,-460.0,0.0002,2]
[368113874,1751027452597,-460.0,0.0002,2]
[368113875,1751027452606,-460.0,0.0002,2]
[368113876,1751027452615,-460.0,0.0002,2]
[368113877,1751027452626,-2500.27,0.0002,2]
[368113878,1751027452637,-460.0,0.0002,2]
[368113879,1751027452646,-652.23,0.0002,2]
[368113880,1751027452656,-460.0,0.0002,2]
[368113881,1751027452667,-460.0,0.0002,2]
[368113882,1751027452676,-227.85,0.0002,2]
[368113883,1751027452685,-2369.02,0.0002,2]
[368113884,1751027452694,-460.0,0.0002,2]
[368113885,1751027452703,-265.25,0.0002,2]
[368113886,1751027452712,-624.87,0.0002,2]
[368113887,1751027452721,-460.0,0.0002,2]
[368113888,1751027452730,-798.78,0.0002,2]
[368113889,1751027452739,-460.0,0.0002,2]
[368113890,1751027452749,-460.0,0.0002,2]
[368113891,1751027452760,-460.0,0.0002,2]
[368113892,1751027452769,-3858.34,0.0002,2]
[368113893,1751027452779,-1102.8,0.0002,2]
[368113894,1751027452787,-460.0,0.0002,2]
[368113895,1751027452796,-460.0,0.0002,2]
[368113896,1751027452806,-460.0,0.0002,2]
[368113897,1751027452815,-460.0,0.0002,2]
[368113898,1751027452824,-3172.08,0.0002,2]
[368113899,1751027452834,-779.54,0.0002,2]
[368113900,1751027452843,-460.0,0.0002,2]
[368113901,1751027452853,-867.73,0.0002,2]
[368113902,1751027452862,-460.0,0.0002,2]
[368113903,1751027452872,-6156.57,0.0002,2]
[368113904,1751027452881,-742.84,0.0002,2]
[368113905,1751027452890,-460.0,0.0002,2]
[368113906,1751027452899,-460.0,0.0002,2]
[368113907,1751027452908,-357.24,0.0002,2]
[368113908,1751027452918,-460.0,0.0002,2]
[368113909,1751027452927,-460.0,0.0002,2]
[368113910,1751027452937,-460.0,0.0002,2]
[368113911,1751027452949,-4231.52,0.0002,2]
[368113912,1751027452959,-460.0,0.0002,2]
[368113913,1751027452968,-461.37837202,0.0002,2]
[368113914,1751027452977,-4008.72,0.0002,2]
[368113915,1751027452986,-750.91,0.0002,2]
[368113916,1751027452996,-348.86,0.0002,2]
[368113917,1751027453005,-1846.1,0.0002,2]
[368113918,1751027453014,-244.36759311,0.00020033,2]
[368113919,1751027453023,-300.56217115,0.00020039,2]
[368113920,1751027453032,-151.0,0.00020055,2]
[368113921,1751027453042,-151.0,0.00020055,2]
[368113922,1751027453051,-151.0,0.00020055,2]
[368113923,1751027453060,-151.0,0.00020055,2]
[368113924,1751027453070,-500.0,0.00020055,2]
[368113925,1751027453079,-151.0,0.00020055,2]
[368113926,1751027453088,-151.0,0.00020055,2]
[368113927,1751027453097,-151.0,0.00020055,2]
[368113928,1751027453106,-151.0,0.00020055,2]
[368113929,1751027453116,-500.0,0.00020055,2]
[368113930,1751027453125,-151.0,0.00020055,2]
[368113931,1751027453134,-151.3309064,0.00020055,2]
[368113932,1751027453143,-151.88614474,0.00020055,2]
[368113933,1751027453244,-151.45924977,0.00020055,2]
[368113934,1751027453255,-151.48945811,0.00020055,2]
[368113935,1751027453264,-151.0,0.00020055,2]
[368113936,1751027453273,-151.36762175,0.00020055,2]
[368113937,1751027453282,-500.0,0.00020055,2]
[368113938,1751027453292,-151.0,0.00020055,2]
[368113939,1751027453301,-152.35678962,0.00020055,2]
[368113940,1751027453311,-151.21434962,0.00020055,2]
[368113941,1751027453320,-151.0,0.00020055,2]
[368113942,1751027453330,-198.0,0.00020055,2]
[368113943,1751027453339,-151.0,0.00020055,2]
[368113944,1751027453349,-151.0,0.00020055,2]
[368113945,1751027453358,-500.0,0.00020055,2]
[368113946,1751027453368,-500.0,0.00020055,2]
[368113947,1751027453377,-151.0,0.00020055,2]
[368113948,1751027453386,-151.0,0.00020055,2]
[368113949,1751027453396,-151.0,0.00020055,2]
[368113950,1751027453406,-151.0,0.00020055,2]
[368113951,1751027453415,-151.0,0.00020055,2]
[368113952,1751027453425,-153.85052368,0.00020055,2]
[368113953,1751027453435,-500.0,0.00020055,2]
[368113954,1751027453444,-151.0,0.00020055,2]
[368113955,1751027453453,-151.0,0.00020055,2]
[368113956,1751027453463,-151.0,0.00020055,2]
[368113957,1751027453472,-151.0,0.00020055,2]
[368113958,1751027453482,-151.0,0.00020082,2]
[368113959,1751027453492,-199.27594928,0.00020082,2]
[368113960,1751027453504,-151.0,0.00020082,2]
[368113961,1751027453514,-151.0,0.00020082,2]
[368113962,1751027453523,-151.0,0.00020082,2]
[368113963,1751027453534,-500.0,0.00020082,2]
[368113964,1751027453543,-151.0,0.00020082,2]
[368113965,1751027453553,-151.0,0.00020082,2]
[368113966,1751027453562,-217.05385524,0.00020082,2]
[368113967,1751027453572,-500.0,0.00020082,2]
[368113968,1751027453581,-151.0,0.00020082,2]
[368113969,1751027453591,-151.0,0.00020082,2]
[368113970,1751027453600,-500.0,0.00020082,2]
[368113971,1751027453610,-151.98541342,0.00020082,2]
[368113972,1751027453619,-199.22810316,0.00020082,2]
[368113973,1751027453631,-223.83076541,0.00020082,2]
[368113974,1751027453640,-500.0,0.00020082,2]
[368113975,1751027453649,-370.15164315,0.00020082,2]
[368113976,1751027453659,-151.0,0.00020082,2]
[368113977,1751027453668,-151.0,0.00020082,2]
[368113978,1751027453678,-151.0,0.00020082,2]
[368113979,1751027453688,-500.0,0.00020082,2]
[368113980,1751027453698,-151.0,0.00020082,2]
[368113981,1751027453707,-151.0,0.00020082,2]
[368113982,1751027453717,-151.0,0.00020082,2]
[368113983,1751027453727,-265.81581277,0.00020082,2]
[368113984,1751027453736,-3157.0,0.00020084,2]
[368113985,1751027453745,-151.0,0.000201,3]
[368113986,1751027453754,-151.0,0.0002011,2]
[368113987,1751027453763,-210.26877156,0.0002011,2]
[368113988,1751027453772,-151.0,0.0002011,2]
[368113989,1751027453781,-153.47998342,0.0002011,2]
[368113990,1751027453789,-199.11660757,0.0002011,2]
[368113991,1751027453799,-169.18993449,0.0002011,2]
[368113992,1751027453808,-500.0,0.0002011,2]
[368113993,1751027453817,-500.0,0.0002011,2]
[368113994,1751027453826,-151.0,0.0002011,2]
[368113995,1751027453835,-500.0,0.0002011,2]
[368113996,1751027453844,-151.0,0.0002011,2]
[368113997,1751027453853,-151.0,0.0002011,2]
[368113998,1751027453862,-165.71650615,0.0002011,2]
[368113999,1751027453872,-151.0,0.00020137,2]
[368114000,1751027453882,-198.58160102,0.00020137,2]
[368114001,1751027453891,-500.0,0.00020137,2]
[368114002,1751027453900,-500.0,0.00020137,2]
[368114003,1751027453909,-151.0,0.00020137,2]
[368114004,1751027453919,-151.0,0.00020137,2]
[368114005,1751027453929,-163.49764075,0.00020137,2]
[368114006,1751027453938,-245.80540116,0.00020137,2]
[368114007,1751027453947,-245.75049795,0.00020165,2]
[368114008,1751027453956,-500.0,0.00020165,2]
[368114009,1751027453965,-153.19864832,0.00020165,2]
[368114010,1751027453975,-151.0,0.00020165,2]
[368114011,1751027453983,-500.0,0.00020192,2]
[368114012,1751027453992,-233.32523724,0.00020192,2]
[368114013,1751027454001,-151.0,0.000202,3]
[368114014,1751027454011,-392.288962,0.00020219,2]
[368114015,1751027454020,-501.79326718,0.00020223,2]
[368114016,1751027454030,-200.87098994,0.00020243,2]
[368114017,1751027454039,-724.00444455,0.00020245,2]
[368114018,1751027454048,-500.59761066,0.00020245,2]
[368114019,1751027454057,-1000.0,0.00020245,2]
[368114020,1751027454066,-505.5347495,0.00020245,2]
[368114021,1751027454075,-312.2663013,0.00020254,2]
[368114022,1751027454084,-500.0,0.00020263,2]
[368114023,1751027454094,-14741.31097537,0.00020264,2]
[368114024,1751027454103,-191841.74188,0.00020264,2]
[368114025,1751027454113,-500.0,0.00020266,2]
[368114026,1751027454123,-500.0,0.00020266,2]
[368114027,1751027454132,-500.0,0.00020266,2]
[368114028,1751027454141,-500.0,0.00020266,2]
[368114029,1751027454151,-500.0,0.00020266,2]
[368114030,1751027454160,-500.0,0.00020266,2]
[368114031,1751027454169,-500.0,0.00020266,2]
[368114032,1751027454179,-500.0,0.00020266,2]
[368114033,1751027454188,-500.0,0.00020266,2]
[368114034,1751027454198,-500.0,0.00020266,2]
[368114035,1751027454207,-500.0,0.00020266,2]
[368114036,1751027454216,-500.0,0.00020266,2]
[368114037,1751027454226,-666.0,0.00020266,2]
[368114038,1751027454235,-207.4,0.00020266,2]
[368114039,1751027454245,-500.0,0.00020266,2]
[368114040,1751027454254,-500.0,0.00020266,2]
[368114041,1751027454264,-5000.0,0.00020266,2]
[368114042,1751027454273,-500.0,0.00020266,2]
[368114043,1751027454282,-500.0,0.00020266,2]
[368114044,1751027454292,-500.0,0.00020266,2]
[368114045,1751027454301,-500.0,0.00020266,2]
[368114046,1751027454310,-500.0,0.00020266,2]
[368114047,1751027454319,-500.0,0.00020266,2]
[368114048,1751027454329,-500.0,0.00020266,2]
[368114049,1751027454339,-500.0,0.00020266,2]
[368114050,1751027454349,-500.0,0.00020266,2]
[368114051,1751027454359,-500.0,0.00020266,2]
[368114052,1751027454369,-500.0,0.00020266,2]
[368114053,1751027454378,-500.0,0.00020266,2]
[368114054,1751027454387,-500.0,0.00020266,2]
[368114055,1751027454397,-500.0,0.00020266,2]
[368114056,1751027454406,-500.0,0.00020266,2]
[368114057,1751027454416,-500.0,0.00020266,2]
[368114058,1751027454425,-500.0,0.00020266,2]
[368114059,1751027454435,-500.0,0.00020266,2]
[368114060,1751027454444,-500.0,0.00020266,2]
[368114061,1751027454453,-235.56002875,0.00020266,2]
[368114062,1751027454632,-264.43997125,0.00020266,2]
[368114063,1751027454642,-500.0,0.00020266,2]
[368114064,1751027454651,-500.0,0.00020266,2]
[368114065,1751027454661,-151.0,0.00020266,2]
[368114066,1751027454670,-151.0,0.00020266,2]
[368114067,1751027454679,-151.0,0.00020266,2]
[368114068,1751027454688,-25000.0,0.00020266,2]
[368114069,1751027454697,-151.0,0.00020266,2]
[368114070,1751027454707,-15529.87358252,0.00020266,2]
[368114071,1751027454720,-936.59077236,0.00020266,2]
[368114072,1751027454731,-4942.54681648,0.00020266,2]
[368114073,1751027454740,-288.89272804,0.00020266,2]
[368114074,1751027454750,-42255.00915418,0.00020266,2]
[368114075,1751027454761,-765.36411378,0.00020266,2]
[368114076,1751027454770,-1283.0,0.00020266,2]
[368114077,1751027454780,-500.0,0.00020272,2]
[368114078,1751027454789,-500.0,0.00020272,2]
[368114079,1751027454798,-500.0,0.00020272,2]
[368114080,1751027454807,-200.0,0.00020272,2]
[368114081,1751027454816,-460.0,0.00020273,2]
[368114082,1751027454826,-460.0,0.00020273,2]
[368114083,1751027454835,-460.0,0.00020273,2]
[368114084,1751027454844,-460.0,0.00020273,2]
[368114085,1751027454854,-460.0,0.00020273,2]
[368114086,1751027454863,-460.0,0.00020273,2]
[368114087,1751027454873,-460.0,0.00020273,2]
[368114088,1751027454882,-460.0,0.00020273,2]
[368114089,1751027454891,-460.0,0.00020273,2]
[368114090,1751027454902,-460.0,0.00020273,2]
[368114091,1751027454911,-580.06,0.00020273,2]
[368114092,1751027454921,-460.0,0.00020273,2]
[368114093,1751027454930,-264.62,0.00020273,2]
[368114094,1751027454939,-868.8,0.00020273,2]
[368114095,1751027454948,-460.0,0.00020273,2]
[368114096,1751027455052,-460.0,0.00020273,2]
[368114097,1751027455063,-460.0,0.00020273,2]
[368114098,1751027455073,-460.0,0.00020273,2]
[368114099,1751027455082,-460.0,0.00020273,2]
[368114100,1751027455091,-460.0,0.00020273,2]
[368114101,1751027455101,-460.0,0.00020273,2]
[368114102,1751027455110,-460.0,0.00020273,2]
[368114103,1751027455120,-342.26,0.00020273,2]
[368114104,1751027455130,-460.0,0.00020273,2]
[368114105,1751027455140,-197.99460036,0.00020273,2]
[368114106,1751027455149,-460.0,0.00020273,2]
[368114107,1751027455159,-460.0,0.00020273,2]
[368114108,1751027455169,-460.0,0.00020273,2]
[368114109,1751027455178,-460.0,0.00020273,2]
[368114110,1751027455187,-460.0,0.00020273,2]
[368114111,1751027455198,-460.0,0.00020273,2]
[368114112,1751027455208,-460.0,0.00020273,2]
[368114113,1751027455217,-460.0,0.00020273,2]
[368114114,1751027455227,-460.0,0.00020273,2]
[368114115,1751027455236,-286.9,0.00020273,2]
[368114116,1751027455246,-460.0,0.00020273,2]
[368114117,1751027455256,-472.42,0.00020273,2]
[368114118,1751027455266,-884.99,0.00020273,2]
[368114119,1751027455275,-460.0,0.00020273,2]
[368114120,1751027455284,-460.0,0.00020273,2]
[368114121,1751027455293,-589.84197217,0.00020273,2]
[368114122,1751027455303,-460.0,0.00020273,2]
[368114123,1751027455315,-460.0,0.00020273,2]
[368114124,1751027455324,-516.86,0.00020273,2]
[368114125,1751027455335,-460.0,0.00020273,2]
[368114126,1751027455344,-563.57,0.00020273,2]
[368114127,1751027455354,-460.0,0.00020273,2]
[368114128,1751027455363,-2007.38,0.00020273,2]
[368114129,1751027455373,-1138.6,0.00020273,2]
[368114130,1751027455383,-460.0,0.00020273,2]
[368114131,1751027455392,-2956.2,0.00020273,2]
[368114132,1751027455402,-460.0,0.00020273,2]
[368114133,1751027455411,-460.0,0.00020273,2]
[368114134,1751027455421,-7048.19,0.00020273,2]
[368114135,1751027455431,-460.0,0.00020273,2]
[368114136,1751027455440,-460.0,0.00020273,2]
[368114137,1751027455450,-1332.79,0.00020273,2]
[368114138,1751027455459,-460.0,0.00020273,2]
[368114139,1751027455468,-460.0,0.00020273,2]
[368114140,1751027455478,-460.0,0.00020273,2]
[368114141,1751027455487,-857.83,0.00020273,2]
[368114142,1751027455498,-460.0,0.00020273,2]
[368114143,1751027455512,-396.02,0.00020273,2]
[368114144,1751027455521,-460.0,0.00020273,2]
[368114145,1751027455531,-460.0,0.00020273,2]
[368114146,1751027455540,-875.94,0.00020273,2]
[368114147,1751027455550,-460.0,0.00020273,2]
[368114148,1751027455560,-1879.18,0.00020273,2]
[368114149,1751027455570,-963.88,0.00020273,2]
[368114150,1751027455579,-706.48,0.00020273,2]
[368114151,1751027455590,-2249.58,0.00020273,2]
[368114152,1751027455599,-460.0,0.00020273,2]
[368114153,1751027455610,-460.0,0.00020273,2]
[368114154,1751027455619,-460.0,0.00020273,2]
[368114155,1751027455631,-5580.76,0.00020273,2]
[368114156,1751027455640,-460.0,0.00020273,2]
[368114157,1751027455650,-1858.16,0.00020273,2]
[368114158,1751027455659,-460.0,0.00020273,2]
[368114159,1751027455668,-716.5,0.00020273,2]
[368114160,1751027455678,-153.98,0.00020273,2]
[368114161,1751027455688,-619.78,0.00020273,2]
[368114162,1751027455699,-495.44,0.00020273,2]
[368114163,1751027455709,-460.0,0.00020273,2]
[368114164,1751027455719,-460.0,0.00020273,2]
[368114165,1751027455728,-460.0,0.00020273,2]
[368114166,1751027455738,-1103.54,0.00020273,2]
[368114167,1751027455747,-1121.1,0.00020273,2]
[368114168,1751027455760,-863.75,0.00020273,2]
[368114169,1751027455770,-460.0,0.00020273,2]
[368114170,1751027455779,-460.0,0.00020273,2]
[368114171,1751027455789,-460.0,0.00020273,2]
[368114172,1751027455798,-460.0,0.00020273,2]
[368114173,1751027455807,-460.0,0.00020273,2]
[368114174,1751027455816,-460.0,0.00020273,2]
[368114175,1751027455825,-460.0,0.00020273,2]
[368114176,1751027455834,-2103.41,0.00020273,2]
[368114177,1751027455843,-419.08,0.00020273,2]
[368114178,1751027455852,-460.0,0.00020273,2]
[368114179,1751027455862,-460.0,0.00020273,2]
[368114180,1751027455871,-460.0,0.00020273,2]
[368114181,1751027455880,-2500.27,0.00020273,2]
[368114182,1751027455889,-652.23,0.00020273,2]
[368114183,1751027455899,-460.0,0.00020273,2]
[368114184,1751027455908,-460.0,0.00020273,2]
[368114185,1751027455918,-2369.02,0.00020273,2]
[368114186,1751027455927,-460.0,0.00020273,2]
[368114187,1751027455936,-624.87,0.00020273,2]
[368114188,1751027455945,-460.0,0.00020273,2]
[368114189,1751027455955,-798.78,0.00020273,2]
[368114190,1751027455965,-251.50188353,0.00020273,2]
[368114191,1751027455975,-159.84,0.00020273,2]
[368114192,1751027455984,-460.0,0.00020273,2]
[368114193,1751027455994,-3858.34,0.00020273,2]
[368114194,1751027456006,-1102.8,0.00020273,2]
[368114195,1751027456015,-460.0,0.00020273,2]
[368114196,1751027456025,-460.0,0.00020273,2]
[368114197,1751027456035,-501.69657566,0.00020273,2]
[368114198,1751027456044,-3172.08,0.00020273,2]
[368114199,1751027456053,-779.54,0.00020273,2]
[368114200,1751027456063,-460.0,0.00020273,2]
[368114201,1751027456072,-867.73,0.00020273,2]
[368114202,1751027456082,-460.0,0.00020273,2]
[368114203,1751027456091,-6156.57,0.00020273,2]
[368114204,1751027456100,-742.84,0.00020273,2]
[368114205,1751027456109,-460.0,0.00020273,2]
[368114206,1751027456119,-460.0,0.00020273,2]
[368114207,1751027456128,-460.0,0.00020273,2]
[368114208,1751027456137,-279.8,0.00020273,2]
[368114209,1751027456147,-460.0,0.00020273,2]
[368114210,1751027456156,-4231.52,0.00020273,2]
[368114211,1751027456165,-460.0,0.00020273,2]
[368114212,1751027456174,-4008.72,0.00020273,2]
[368114213,1751027456184,-750.91,0.00020273,2]
[368114214,1751027456193,-1846.1,0.00020273,2]
[368114215,1751027456202,-500.0,0.00020274,2]
[368114216,1751027456212,-690.642,0.00020321,2]
[368114217,1751027456221,-716.195754,0.00020376,2]
[368114218,1751027456230,-730.4900384,0.00020395,2]
[368114219,1751027456240,-151.980485,0.00020395,2]
[368114220,1751027456249,-151.0,0.00020395,2]
[368114221,1751027456261,-151.0,0.00020395,2]
[368114222,1751027456271,-151.0,0.00020395,2]
[368114223,1751027456281,-151.0,0.00020395,2]
[368114224,1751027456290,-742.6949969,0.00020431,2]
[368114225,1751027456300,-770.17471178,0.00020486,2]
[368114226,1751027456310,-1000.0,0.00020521,2]
[368114227,1751027456319,-1000.0,0.00020521,2]
[368114228,1751027456328,-1000.0,0.00020521,2]
[368114229,1751027456338,-798.67117612,0.00020541,2]
[368114230,1751027456347,-500.0,0.00020546,2]
[368114231,1751027456356,-500.0,0.00020546,2]
[368114232,1751027456366,-500.0,0.00020546,2]
[368114233,1751027456375,-200.0,0.00020546,2]
[368114234,1751027456385,-200.0,0.00020546,2]
[368114235,1751027456394,-460.0,0.00020547,2]
[368114236,1751027456403,-460.0,0.00020547,2]
[368114237,1751027456412,-460.0,0.00020547,2]
[368114238,1751027456422,-460.0,0.00020547,2]
[368114239,1751027456431,-460.0,0.00020547,2]
[368114240,1751027456440,-460.0,0.00020547,2]
[368114241,1751027456450,-287.99503935,0.00020547,2]
[368114242,1751027456460,-257.14,0.00020547,2]
[368114243,1751027456469,-460.0,0.00020547,2]
[368114244,1751027456479,-868.8,0.00020547,2]
[368114245,1751027456488,-551.92,0.00020547,2]
[368114246,1751027456498,-428.2852463,0.00020547,2]
[368114247,1751027456509,-460.0,0.00020547,2]
[368114248,1751027456518,-460.0,0.00020547,2]
[368114249,1751027456528,-460.0,0.00020547,2]
[368114250,1751027456538,-460.0,0.00020547,2]
[368114251,1751027456547,-460.0,0.00020547,2]
[368114252,1751027456556,-284.42,0.00020547,2]
[368114253,1751027456566,-460.0,0.00020547,2]
[368114254,1751027456575,-218.43551648,0.00020547,2]
[368114255,1751027456585,-506.94288885,0.00020547,2]
[368114256,1751027456594,-460.0,0.00020547,2]
[368114257,1751027456603,-460.0,0.00020547,2]
[368114258,1751027456612,-460.0,0.00020547,2]
[368114259,1751027456622,-460.0,0.00020547,2]
[368114260,1751027456634,-460.0,0.00020547,2]
[368114261,1751027456643,-460.0,0.00020547,2]
[368114262,1751027456653,-460.0,0.00020547,2]
[368114263,1751027456662,-884.99,0.00020547,2]
[368114264,1751027456671,-460.0,0.00020547,2]
[368114265,1751027456681,-168.77,0.00020547,2]
[368114266,1751027456690,-460.0,0.00020547,2]
[368114267,1751027456699,-460.0,0.00020547,2]
[368114268,1751027456708,-516.86,0.00020547,2]
[368114269,1751027456718,-460.0,0.00020547,2]
[368114270,1751027456727,-563.57,0.00020547,2]
[368114271,1751027456736,-460.0,0.00020547,2]
[368114272,1751027456746,-151.0,0.00020547,2]
[368114273,1751027456756,-2007.38,0.00020547,2]
[368114274,1751027456765,-1138.6,0.00020547,2]
[368114275,1751027456775,-460.0,0.00020547,2]
[368114276,1751027456784,-2956.2,0.00020547,2]
[368114277,1751027456794,-460.0,0.00020547,2]
[368114278,1751027456803,-7048.19,0.00020547,2]
[368114279,1751027456896,-460.0,0.00020547,2]
[368114280,1751027456906,-460.0,0.00020547,2]
[368114281,1751027456915,-1332.79,0.00020547,2]
[368114282,1751027456924,-460.0,0.00020547,2]
[368114283,1751027456933,-460.0,0.00020547,2]
[368114284,1751027456943,-460.0,0.00020547,2]
[368114285,1751027456951,-857.83,0.00020547,2]
[368114286,1751027456960,-460.0,0.00020547,2]
[368114287,1751027456969,-460.0,0.00020547,2]
[368114288,1751027456979,-460.0,0.00020547,2]
[368114289,1751027456988,-875.94,0.00020547,2]
[368114290,1751027456998,-460.0,0.00020547,2]
[368114291,1751027457010,-1879.18,0.00020547,2]
[368114292,1751027457019,-151.0,0.00020547,2]
[368114293,1751027457028,-963.88,0.00020547,2]
[368114294,1751027457037,-706.48,0.00020547,2]
[368114295,1751027457046,-2249.58,0.00020547,2]
[368114296,1751027457057,-460.0,0.00020547,2]
[368114297,1751027457066,-460.0,0.00020547,2]
[368114298,1751027457075,-460.0,0.00020547,2]
[368114299,1751027457085,-5580.76,0.00020547,2]
[368114300,1751027457094,-460.0,0.00020547,2]
[368114301,1751027457103,-1858.16,0.00020547,2]
[368114302,1751027457113,-460.0,0.00020547,2]
[368114303,1751027457122,-716.5,0.00020547,2]
[368114304,1751027457131,-619.78,0.00020547,2]
[368114305,1751027457141,-495.44,0.00020547,2]
[368114306,1751027457150,-460.0,0.00020547,2]
[368114307,1751027457158,-460.0,0.00020547,2]
[368114308,1751027457168,-1103.54,0.00020547,2]
[368114309,1751027457177,-1121.1,0.00020547,2]
[368114310,1751027457186,-863.75,0.00020547,2]
[368114311,1751027457195,-526.1,0.00020547,2]
[368114312,1751027457204,-151.0,0.00020547,2]
[368114313,1751027457214,-460.0,0.00020547,2]
[368114314,1751027457223,-599.54,0.00020547,2]
[368114315,1751027457232,-460.0,0.00020547,2]
[368114316,1751027457241,-460.0,0.00020547,2]
[368114317,1751027457250,-572.67,0.00020547,2]
[368114318,1751027457263,-460.0,0.00020547,2]
[368114319,1751027457272,-2103.41,0.00020547,2]
[368114320,1751027457281,-460.0,0.00020547,2]
[368114321,1751027457290,-460.0,0.00020547,2]
[368114322,1751027457300,-2500.27,0.00020547,2]
[368114323,1751027457310,-460.0,0.00020547,2]
[368114324,1751027457320,-652.23,0.00020547,2]
[368114325,1751027457329,-460.0,0.00020547,2]
[368114326,1751027457339,-460.0,0.00020547,2]
[368114327,1751027457348,-2369.02,0.00020547,2]
[368114328,1751027457358,-186.70310875,0.00020547,2]
[368114329,1751027457367,-624.87,0.00020547,2]
[368114330,1751027457376,-460.0,0.00020547,2]
[368114331,1751027457386,-798.78,0.00020547,2]
[368114332,1751027457396,-460.0,0.00020547,2]
[368114333,1751027457406,-3858.34,0.00020547,2]
[368114334,1751027457416,-1102.8,0.00020547,2]
[368114335,1751027457425,-460.0,0.00020547,2]
[368114336,1751027457435,-460.0,0.00020547,2]